bitfinex-derivatives/quotes_BTCF0:USTF0_20210409
["timestamp","ask_amount","ask_price","bid_price","bid_amount"]
[1617934943658,0.61865051,58124.0,58122.0,0.30492397]
[1617934943858,0.51139388,58123.0,58122.0,0.30492397]
[1617934944357,0.10725655,58124.0,58122.0,0.30492397]
[1617934944657,0.6183946,58124.0,58122.0,0.30492397]
[1617934945558,0.51113223,58123.0,58122.0,0.30492397]
[1617934946260,0.10725655,58124.0,58122.0,3.80982397]
[1617934946261,0.61838907,58124.0,58122.0,3.80982397]
[1617934946458,0.61838907,58124.0,58122.0,3.94296397]
[1617934947259,0.61838907,58124.0,58123.0,0.3047309]
[1617934947759,0.61838907,58124.0,58123.0,0.41198745]
[1617934948161,0.10725655,58124.0,58123.0,3.61405655]
[1617934949362,0.10725655,58124.0,58123.0,0.41194397]
[1617934949861,1.10725655,58124.0,58123.0,0.30468742]
[1617934950161,5.18175655,58124.0,58123.0,0.30468742]
[1617934950361,5.18175655,58124.0,58119.0,0.30494724]
[1617934950362,6.69280339,58124.0,58119.0,0.30494724]
[1617934950562,6.80451339,58124.0,58119.0,0.30494724]
[1617934950861,6.80451339,58124.0,58093.0,0.09218815]
[1617934950862,1.8790728,58120.0,58111.0,0.27112669]
[1617934951061,3.2915,58112.0,58111.0,0.27112669]
[1617934951263,3.43742,58112.0,58106.0,0.36655514]
[1617934951463,4.43742,58112.0,58106.0,0.36655514]
[1617934951664,4.43742,58112.0,58104.0,0.3668188]
[1617934951665,0.36803888,58107.0,58104.0,0.3668188]
[1617934951861,0.10725655,58105.0,58104.0,0.3668188]
[1617934952063,0.10725655,58105.0,58091.0,0.10725655]
[1617934952064,0.47529532,58105.0,58103.0,0.36689969]
[1617934952262,0.47529532,58105.0,58104.0,3.5061]
[1617934952463,0.10725655,58105.0,58104.0,3.87279929]
[1617934953063,0.47528577,58105.0,58104.0,3.93426589]
[1617934953862,0.53675122,58105.0,58104.0,3.93426589]
[1617934954165,0.53675122,58105.0,58104.0,0.42816589]
[1617934954764,0.53675122,58105.0,58104.0,3.81769929]
[1617934955264,0.53675122,58105.0,58104.0,3.87916583]
[1617934960372,0.53675122,58105.0,58104.0,0.42816583]
[1617934960773,3.05545122,58105.0,58104.0,0.42816583]
[1617934960976,3.05545122,58105.0,58104.0,0.36669929]
[1617934961476,3.50504346,58105.0,58104.0,0.36669929]
[1617934962780,3.05545122,58105.0,58104.0,0.36669929]
[1617934963381,3.50504212,58105.0,58104.0,0.36669929]
[1617934964281,3.50504212,58105.0,58103.0,0.36665591]
[1617934964680,0.87892792,58104.0,58103.0,0.36665591]
[1617934965082,0.42933487,58104.0,58103.0,0.36665591]
[1617934967484,3.07554819,58105.0,58103.0,0.36665591]
[1617934967684,0.55684819,58105.0,58103.0,0.36665591]
[1617934967985,0.55684819,58105.0,58104.0,3.2559]
[1617934968384,0.92468773,58105.0,58104.0,3.31736826]
[1617934969587,0.92468773,58105.0,58104.0,3.68379298]
[1617934970088,0.92468773,58105.0,58104.0,3.31736826]
[1617934971987,0.92468773,58105.0,58104.0,3.68355904]
[1617934971988,0.47509609,58105.0,58104.0,3.68355904]
[1617934974385,0.47509609,58105.0,58104.0,0.42765904]
[1617934974587,3.46119609,58105.0,58104.0,0.42765904]
[1617934974790,4.46119609,58105.0,58104.0,0.42765904]
[1617934974989,4.91067854,58105.0,58100.0,0.3666087]
[1617934975489,0.81726584,58101.0,58099.0,0.36668324]
[1617934975889,0.36777984,58101.0,58096.0,0.44797059]
[1617934976389,0.36777514,58099.0,58097.0,0.44793613]
[1617934976588,0.46137514,58099.0,58097.0,0.44793613]
[1617934976788,0.46137514,58099.0,58098.0,0.36648739]
[1617934977089,0.52284495,58099.0,58098.0,0.36648739]
[1617934977890,0.6301015,58099.0,58098.0,0.36648739]
[1617934979892,0.6301015,58099.0,58098.0,2.96328739]
[1617934980094,0.5365015,58099.0,58098.0,2.96328739]
[1617934980493,0.5365015,58099.0,58098.0,3.02475705]
[1617934981292,0.5365015,58099.0,58098.0,3.33008892]
[1617934981692,0.10725655,58099.0,58098.0,3.77750315]
[1617934982493,0.10725655,58099.0,58098.0,3.33008892]
[1617934985894,0.47482179,58099.0,58098.0,3.33008892]
[1617934986094,0.10725655,58099.0,58098.0,3.33008892]
[1617934986294,0.10725655,58099.0,58098.0,3.47416892]
[1617934986995,0.10725655,58099.0,58098.0,3.9215448]
[1617934990798,0.10725655,58099.0,58098.0,3.49358775]
[1617934991096,0.10725655,58099.0,58098.0,3.71558546]
[1617934991297,0.10725655,58099.0,58098.0,3.34950775]
[1617934991499,0.10725655,58099.0,58098.0,3.71568437]
[1617935004620,0.47589605,58099.0,58098.0,1.11888437]
[1617935004820,3.30319605,58099.0,58098.0,1.11888437]
[1617935005020,3.75374907,58099.0,58098.0,1.11888437]
[1617935005219,4.75374907,58099.0,58098.0,1.11888437]
[1617935005720,5.15025058,58099.0,58098.0,0.67150849]
[1617935006219,5.15025058,58099.0,58098.0,0.73298777]
[1617935006520,5.66216205,58099.0,58098.0,0.67150849]
[1617935007421,5.66216205,58099.0,58098.0,0.73298889]
[1617935007922,5.66216205,58099.0,58098.0,0.67150849]
[1617935008323,5.66216205,58099.0,58098.0,0.73298899]
[1617935008725,5.66216205,58099.0,58098.0,0.67150849]
[1617935009325,4.66216205,58099.0,58098.0,0.67150849]
[1617935009528,5.66216205,58099.0,58098.0,0.67150849]
[1617935011650,5.66216205,58099.0,58098.0,0.30533187]
[1617935012533,2.83486205,58099.0,58097.0,0.30632427]
[1617935012730,4.33486205,58099.0,58097.0,0.30632427]
[1617935013131,1.39251147,58098.0,58097.0,0.30632427]
[1617935013330,4.09251147,58098.0,58097.0,0.30632427]
[1617935013743,4.09251147,58098.0,58078.0,0.06148143]
[1617935013744,4.28845173,58098.0,58095.0,0.30644504]
[1617935014433,4.86184833,58098.0,58091.0,0.306413]
[1617935014832,1.0,58096.0,58091.0,0.306413]
[1617935015035,1.7,58091.0,58088.0,0.30660535]
[1617935015437,1.33121544,58089.0,58083.0,0.36831526]
[1617935015636,4.3014,58084.0,58083.0,0.36831526]
[1617935015836,4.42567,58084.0,58083.0,0.36831526]
[1617935016037,4.42567,58084.0,58078.0,0.45016309]
[1617935016038,0.10725655,58083.0,58082.0,0.36830455]
[1617935016240,1.80725655,58083.0,58082.0,0.36830455]
[1617935016541,0.30725655,58083.0,58072.0,0.36668703]
[1617935016738,1.30725655,58083.0,58072.0,0.36668703]
[1617935017139,1.0,58074.0,58072.0,0.36668703]
[1617935017540,1.0,58074.0,58073.0,0.36663254]
[1617935017739,1.0,58076.0,58073.0,0.36663254]
[1617935018240,1.10725655,58074.0,58073.0,0.36663254]
[1617935018843,1.10725655,58074.0,58072.0,0.36672807]
[1617935020545,1.10725655,58074.0,58071.0,0.36684263]
[1617935021547,0.10725655,58074.0,58071.0,0.36684263]
[1617935021929,0.36683338,58078.0,58071.0,0.36684263]
[1617935022048,0.36690353,58080.0,58077.0,2.8578]
[1617935022246,0.36690353,58080.0,58077.0,2.96505655]
[1617935022448,0.10725655,58084.0,58077.0,3.331422]
[1617935022870,0.10725655,58084.0,58082.0,0.36618336]
[1617935023548,0.10725655,58084.0,58083.0,0.36613357]
[1617935023748,0.10725655,58084.0,58083.0,0.4276162]
[1617935024150,0.10725655,58084.0,58083.0,0.36613357]
[1617935025650,2.75835655,58084.0,58083.0,0.36613357]
[1617935025850,2.75835655,58084.0,58082.0,0.36621573]
[1617935027253,2.75835655,58084.0,58081.0,0.36614408]
[1617935027652,2.75835655,58084.0,58069.0,0.06148367]
[1617935027653,2.75835655,58084.0,58079.0,0.36627737]
[1617935027853,1.0,58082.0,58079.0,0.36627737]
[1617935028053,1.0,58082.0,58078.0,0.36641357]
[1617935028252,1.0,58081.0,58078.0,0.36641357]
[1617935028655,1.0,58081.0,58077.0,0.36645062]
[1617935029057,1.0,58081.0,58076.0,0.36651729]
[1617935029554,3.12521147,58084.0,58076.0,0.36651729]
[1617935029555,0.36685747,58083.0,58076.0,0.36651729]
[1617935029756,1.0,58080.0,58076.0,0.36651729]
[1617935030056,1.0,58080.0,58075.0,0.36652628]
[1617935030257,0.10725655,58076.0,58075.0,0.36652628]
[1617935030457,0.24295655,58076.0,58075.0,0.36652628]
[1617935033360,1.24295655,58076.0,58075.0,0.36652628]
[1617935034063,1.24295655,58076.0,58074.0,0.36645599]
[1617935035861,1.0,58075.0,58074.0,0.36645599]
[1617935036262,3.0043,58075.0,58074.0,0.36645599]
[1617935036866,3.0043,58075.0,58073.0,0.36613551]
[1617935037565,4.5043,58075.0,58073.0,0.36613551]
[1617935037865,1.0,58074.0,58070.0,0.36626135]
[1617935038366,1.0,58071.0,58069.0,0.36632414]
[1617935038668,1.0,58070.0,58068.0,0.36588612]
[1617935038964,1.0,58074.0,58068.0,0.36588612]
[1617935039165,1.0,58074.0,58067.0,0.36606285]
[1617935039466,1.0,58074.0,58069.0,0.06149269]
[1617935039766,1.0,58074.0,58068.0,0.36599042]
[1617935040065,1.0,58073.0,58068.0,0.36599042]
[1617935040266,0.10725655,58069.0,58068.0,0.36599042]
[1617935040968,0.1357,58076.0,58068.0,4.08369042]
[1617935041166,0.36649932,58081.0,58068.0,4.08369042]
[1617935041167,0.36649932,58081.0,58068.0,0.46069042]
[1617935041368,0.36647911,58082.0,58068.0,0.46069042]
[1617935041568,0.36647911,58082.0,58080.0,3.7167]
[1617935041770,0.36645941,58087.0,58080.0,3.85594]
[1617935042170,0.36645545,58089.0,58080.0,3.85594]
[1617935043070,0.10725655,58090.0,58080.0,3.85594]
[1617935043270,0.10725655,58090.0,58080.0,0.13924]
[1617935043671,3.417,58081.0,58080.0,0.13924]
[1617935043890,0.10725655,58090.0,58080.0,0.13924]
[1617935044371,0.10725655,58090.0,58084.0,0.10725655]
[1617935045272,0.10725655,58090.0,58082.0,0.36501678]
[1617935045473,0.10725655,58090.0,58085.0,0.3041869]
[1617935045672,2.7233,58088.0,58085.0,0.3041869]
[1617935047675,2.7233,58088.0,58077.0,0.44607426]
[1617935047676,2.7233,58088.0,58084.0,0.30417987]
[1617935048274,2.7233,58088.0,58083.0,0.30427541]
[1617935048775,2.7233,58088.0,58081.0,0.3043896]
[1617935049074,1.0,58087.0,58081.0,0.3043896]
[1617935049374,1.09833,58087.0,58082.0,0.30462336]
[1617935049775,3.0409,58083.0,58080.0,0.30474676]
[1617935050477,3.0409,58083.0,58079.0,0.30486727]
[1617935050775,1.10725655,58081.0,58079.0,0.30486727]
[1617935050976,1.10725655,58081.0,58078.0,0.30487578]
[1617935051375,1.10725655,58081.0,58077.0,0.30492117]
[1617935051877,1.10725655,58081.0,58076.0,0.30498792]
[1617935052876,1.0,58077.0,58076.0,0.30498792]
[1617935053077,1.0,58077.0,58074.0,0.30505707]
[1617935054579,0.10725655,58075.0,58074.0,0.30505707]
[1617935054880,1.25362655,58075.0,58072.0,0.36644399]
[1617935055281,2.822,58073.0,58068.0,0.44770436]
[1617935055780,2.822,58073.0,58052.0,2.7206]
[1617935055781,2.822,58073.0,58072.0,0.30530278]
[1617935056181,3.822,58073.0,58072.0,0.30530278]
[1617935058682,4.18914865,58073.0,58071.0,0.30545802]
[1617935059683,4.18914865,58073.0,58070.0,0.30556744]
[1617935059684,0.36715729,58072.0,58070.0,0.30556744]
[1617935060085,3.18905985,58073.0,58070.0,0.30556744]
[1617935060285,1.0,58071.0,58070.0,0.30556744]
[1617935060685,4.0098,58071.0,58070.0,0.30556744]
[1617935061385,4.0098,58071.0,58069.0,0.3054766]
[1617935061886,1.0,58070.0,58069.0,0.3054766]
[1617935062286,3.8629,58070.0,58069.0,0.3054766]
[1617935063389,3.8629,58070.0,58067.0,0.30555198]
[1617935063789,4.22996703,58070.0,58067.0,0.30555198]
[1617935064189,1.0,58068.0,58067.0,0.30555198]
[1617935064591,1.0,58068.0,58066.0,0.30552265]
[1617935064789,1.10725655,58068.0,58066.0,0.30552265]
[1617935065592,0.3677655,58067.0,58066.0,0.36709227]
[1617935065790,1.3677655,58067.0,58066.0,0.36709227]
[1617935069996,1.3677655,58067.0,58064.0,0.36705923]
[1617935070295,1.3677655,58067.0,58062.0,3.2083]
[1617935070498,1.3677655,58067.0,58064.0,0.36704969]
[1617935070499,0.36775723,58065.0,58064.0,0.36704969]
[1617935071213,1.36775723,58065.0,58064.0,0.36704969]
[1617935071497,1.36775723,58065.0,58063.0,0.36686025]
[1617935071709,1.36775723,58065.0,58062.0,3.57523566]
[1617935072196,0.36751525,58064.0,58062.0,3.57523566]
[1617935072396,1.0,58063.0,58062.0,3.57523566]
[1617935072796,0.36751525,58064.0,58062.0,3.57523566]
[1617935073099,0.36750669,58065.0,58062.0,3.68492566]
[1617935073498,0.36750374,58067.0,58064.0,0.36674477]
[1617935074198,0.36750383,58066.0,58065.0,0.3667744]
[1617935074400,0.51540383,58066.0,58065.0,0.3667744]
[1617935074901,0.51540383,58066.0,58064.0,0.36680444]
[1617935075704,0.36750768,58065.0,58064.0,0.36680444]
[1617935076604,1.1479,58066.0,58063.0,0.36662056]
[1617935076902,0.1479,58066.0,58063.0,0.36662056]
[1617935077102,1.1479,58066.0,58063.0,0.36662056]
[1617935078004,0.51521955,58066.0,58063.0,0.36662056]
[1617935078507,0.1479,58066.0,58065.0,0.36646551]
[1617935078705,0.10725655,58068.0,58065.0,0.36646551]
[1617935079507,0.10725655,58068.0,58066.0,0.3663836]
[1617935080406,1.10725655,58068.0,58066.0,0.3663836]
[1617935080606,1.0,58067.0,58066.0,0.3663836]
[1617935080808,1.10564,58067.0,58066.0,0.3663836]
[1617935081106,4.49704,58067.0,58066.0,0.3663836]
[1617935081308,4.49704,58067.0,58065.0,0.36647215]
[1617935081709,4.49704,58067.0,58064.0,0.36652433]
[1617935082309,4.49704,58067.0,58062.0,0.366718]
[1617935082310,0.36733024,58065.0,58062.0,0.366718]
[1617935082509,1.36733024,58065.0,58062.0,0.366718]
[1617935082712,1.36733024,58065.0,58037.0,0.09224388]
[1617935082713,2.5462,58063.0,58058.0,0.44810035]
[1617935083110,0.10725655,58059.0,58055.0,0.0922443]
[1617935083610,0.10725655,58059.0,58058.0,0.81470369]
[1617935086013,0.10725655,58059.0,58058.0,3.35230369]
[1617935086213,0.36732499,58066.0,58058.0,3.35230369]
[1617935086519,3.69163393,58077.0,58058.0,3.35230369]
[1617935086521,0.36731701,58068.0,58058.0,3.35230369]
[1617935086717,4.1815,58077.0,58058.0,3.35230369]
[1617935086718,0.36730733,58069.0,58065.0,0.36645417]
[1617935087416,0.36729989,58071.0,58068.0,3.3137]
[1617935087613,0.36729989,58071.0,58068.0,3.43152]
[1617935087814,0.36729989,58071.0,58068.0,3.79796783]
[1617935088116,0.36729989,58071.0,58069.0,0.42789735]
[1617935089518,0.10725655,58073.0,58070.0,0.36631864]
[1617935089519,0.36747961,58072.0,58070.0,0.36631864]
[1617935089919,0.47473733,58073.0,58070.0,0.36631864]
[1617935090118,0.47473733,58073.0,58071.0,0.366245]
[1617935090621,0.10725655,58073.0,58072.0,0.36610151]
[1617935091022,0.10725655,58073.0,58072.0,0.42759171]
[1617935091521,0.10725655,58073.0,58072.0,0.36610151]
[1617935093054,0.10725655,58073.0,58069.0,0.06149035]
[1617935093055,1.47475104,58073.0,58069.0,0.42763453]
[1617935093222,1.57538104,58073.0,58069.0,0.42763453]
[1617935093422,1.0,58070.0,58066.0,0.36625771]
[1617935094023,1.0,58067.0,58066.0,0.36625771]
[1617935094635,1.42913388,58067.0,58065.0,0.36674382]
[1617935095024,0.53639213,58066.0,58065.0,0.36674382]
[1617935096028,0.53639213,58066.0,58065.0,0.67236444]
[1617935096335,4.38079213,58066.0,58065.0,0.67236444]
[1617935097926,4.38079213,58066.0,58065.0,0.30562062]
[1617935098728,4.01315432,58066.0,58065.0,0.67216636]
[1617935099330,4.01315432,58066.0,58065.0,0.30562062]
[1617935099930,4.38063933,58066.0,58065.0,0.30562062]
[1617935101537,4.38063933,58066.0,58063.0,0.30553764]
[1617935101934,0.36749013,58064.0,58063.0,0.30553764]
[1617935102834,1.36749013,58064.0,58063.0,0.30553764]
[1617935103234,1.42898853,58064.0,58063.0,0.30553764]
[1617935103736,1.0614984,58064.0,58063.0,0.67245715]
[1617935104137,1.42898026,58064.0,58063.0,0.30553764]
[1617935105137,1.36748186,58064.0,58063.0,0.30553764]
[1617935105438,1.0,58064.0,58063.0,0.67279875]
[1617935105839,3.31922078,58066.0,58063.0,0.67279875]
[1617935106037,0.47482078,58066.0,58063.0,0.67279875]
[1617935106239,0.10725655,58066.0,58063.0,0.67279875]
[1617935106540,0.10725655,58066.0,58065.0,3.42726389]
[1617935106845,0.10725655,58066.0,58065.0,0.67296389]
[1617935107040,0.10725655,58066.0,58065.0,0.73445812]
[1617935107239,3.32565655,58066.0,58065.0,0.73445812]
[1617935107440,3.32565655,58066.0,58065.0,0.67296389]
[1617935108140,4.32565655,58066.0,58065.0,0.67296389]
[1617935109342,4.32565655,58066.0,58065.0,1.12294449]
[1617935109343,4.69426821,58066.0,58065.0,1.12294449]
[1617935109756,3.69426821,58066.0,58065.0,1.12294449]
[1617935110346,3.69426821,58066.0,58065.0,1.27668261]
[1617935112046,4.14476717,58066.0,58065.0,1.27668261]
[1617935113746,3.69426821,58066.0,58065.0,1.27668261]
[1617935116350,4.14476303,58066.0,58065.0,1.27668261]
[1617935116850,3.69426821,58066.0,58065.0,1.27668261]
[1617935128869,3.69426821,58066.0,58065.0,1.78780146]
[1617935130570,3.69426821,58066.0,58065.0,1.27668261]
[1617935131468,3.69426821,58066.0,58065.0,1.78799795]
[1617935131869,3.69426821,58066.0,58065.0,1.27668261]
[1617935134273,3.58701166,58066.0,58065.0,1.27668261]
[1617935135476,3.69426821,58066.0,58065.0,1.27668261]
[1617935135677,0.47586821,58066.0,58065.0,1.27668261]
[1617935135876,0.47586821,58066.0,58065.0,5.1216552]
[1617935136176,0.47586821,58066.0,58065.0,5.2386952]
[1617935136779,0.36861166,58066.0,58065.0,5.2386952]
[1617935137180,0.36862376,58067.0,58065.0,5.2386952]
[1617935137580,0.36862376,58067.0,58066.0,0.10725655]
[1617935137781,0.36861614,58068.0,58066.0,2.09620941]
[1617935138682,0.10725655,58076.0,58066.0,2.09620941]
[1617935138683,0.36860673,58069.0,58067.0,1.89549947]
[1617935138883,0.36860673,58069.0,58067.0,1.69549947]
[1617935139084,0.36860501,58070.0,58068.0,2.6909]
[1617935139484,0.47586156,58070.0,58068.0,2.6909]
[1617935139685,0.47586156,58070.0,58069.0,1.7874573]
[1617935140083,0.53734921,58070.0,58069.0,1.7874573]
[1617935141083,0.43009266,58070.0,58069.0,1.7874573]
[1617935141488,0.36859742,58071.0,58069.0,1.7874573]
[1617935142188,0.36859742,58071.0,58070.0,1.63333248]
[1617935144794,0.36827309,58072.0,58070.0,1.12291608]
[1617935145396,0.36827309,58072.0,58071.0,1.12202651]
[1617935145698,0.55735664,58076.0,58071.0,1.18351484]
[1617935146102,0.36828624,58072.0,58069.0,0.15372049]
[1617935146596,0.4501049,58074.0,58071.0,1.12250906]
[1617935146997,0.36829079,58072.0,58069.0,0.15372049]
[1617935147498,0.36829079,58072.0,58071.0,1.12196395]
[1617935147699,0.36829079,58072.0,58071.0,1.23495395]
[1617935147999,0.36827649,58073.0,58071.0,1.23495395]
[1617935148400,0.36826112,58074.0,58072.0,1.18258105]
[1617935148799,0.36826119,58075.0,58073.0,1.12102418]
[1617935149198,0.36826119,58075.0,58074.0,1.12091834]
[1617935149702,0.47551892,58076.0,58074.0,1.12091834]
[1617935150501,0.10725655,58076.0,58075.0,1.06018376]
[1617935151000,0.10725655,58076.0,58075.0,0.61151562]
[1617935151701,0.10725655,58076.0,58075.0,1.06009264]
[1617935153603,0.5573535,58076.0,58075.0,0.61151562]
[1617935155016,0.10725655,58076.0,58075.0,0.61151562]
[1617935155406,0.10725655,58076.0,58075.0,1.06049155]
[1617935158404,0.10725655,58076.0,58075.0,0.61151562]
[1617935159906,0.55716401,58076.0,58075.0,0.61151562]
[1617935160105,0.55716401,58076.0,58075.0,3.37461562]
[1617935160306,0.10725655,58076.0,58075.0,3.37461562]
[1617935161208,0.10725655,58076.0,58075.0,2.7631]
[1617935161409,0.10725655,58076.0,58075.0,3.06896792]
[1617935161811,0.10725655,58076.0,58075.0,3.51742709]
[1617935162008,0.10725655,58076.0,58075.0,2.7631]
[1617935162310,0.10725655,58076.0,58075.0,3.51705264]
[1617935163910,0.10725655,58076.0,58075.0,0.75395264]
[1617935164211,3.64745655,58076.0,58075.0,0.30565648]
[1617935164410,3.75301655,58076.0,58075.0,0.30565648]
[1617935165014,4.41435122,58076.0,58075.0,0.30565648]
[1617935165414,4.20312729,58076.0,58075.0,0.30565648]
[1617935166814,0.66292729,58076.0,58075.0,0.30565648]
[1617935167818,0.55736729,58076.0,58075.0,0.30565648]
[1617935168217,0.55736729,58076.0,58075.0,0.40052648]
[1617935168428,0.55736729,58076.0,58075.0,0.8485843]
[1617935168429,0.10725655,58076.0,58075.0,0.8485843]
[1617935168922,0.10725655,58076.0,58075.0,0.91006979]
[1617935173029,0.10725655,58076.0,58075.0,0.46201197]
[1617935173430,0.10725655,58076.0,58075.0,0.90978573]
[1617935175532,0.47547177,58076.0,58075.0,1.27593473]
[1617935179136,0.10725655,58076.0,58075.0,1.27593473]
[1617935182241,0.4754739,58076.0,58075.0,1.27593473]
[1617935187253,0.4754739,58076.0,58075.0,1.18106473]
[1617935188153,0.4754739,58076.0,58075.0,0.67180548]
[1617935191155,0.92561539,58076.0,58075.0,0.67180548]
[1617935192059,1.92561539,58076.0,58075.0,0.67180548]
[1617935192858,1.92561539,58076.0,58075.0,0.73329524]
[1617935193358,2.43717176,58076.0,58074.0,0.30535071]
[1617935193759,2.43717176,58076.0,58060.0,0.19949266]
[1617935193760,2.43717176,58076.0,58075.0,0.30566158]
[1617935194159,1.10725655,58076.0,58075.0,0.30566158]
[1617935194561,2.43857899,58076.0,58075.0,0.30566158]
[1617935195661,2.43857899,58076.0,58075.0,0.36715209]
[1617935196463,5.99297899,58076.0,58075.0,0.30566158]
[1617935196862,6.20288731,58076.0,58075.0,0.30566158]
[1617935202271,6.20288731,58076.0,58074.0,3.0033]
[1617935202569,2.64848731,58076.0,58072.0,0.30505389]
[1617935202773,1.60061225,58075.0,58073.0,0.30502241]
[1617935203172,0.81817335,58074.0,58072.0,0.3050416]
[1617935203673,0.8181729,58073.0,58070.0,0.3659985]
[1617935204071,0.8181745,58071.0,58070.0,0.3659985]
[1617935204672,0.8181745,58071.0,58070.0,0.30498277]
[1617935204872,4.3592745,58071.0,58070.0,0.30498277]
[1617935205474,4.6303271,58071.0,58070.0,0.30498277]
[1617935209277,3.75066179,58071.0,58070.0,0.30498277]
[1617935209778,4.56859967,58071.0,58070.0,0.30498277]
[1617935210578,4.56859967,58071.0,58070.0,0.67105013]
[1617935211078,4.56859967,58071.0,58070.0,0.30498277]
[1617935211478,4.56859967,58071.0,58070.0,0.3664738]
[1617935211777,4.56859967,58071.0,58070.0,0.30498277]
[1617935213581,4.35903788,58071.0,58070.0,0.30498277]
[1617935213981,4.35903788,58071.0,58070.0,0.670975]
[1617935214380,4.35903788,58071.0,58070.0,0.30498277]
[1617935217586,4.35903788,58071.0,58070.0,0.67084942]
[1617935217785,3.90918227,58071.0,58070.0,0.67084942]
[1617935217985,0.36808227,58071.0,58070.0,0.67084942]
[1617935218188,0.81769819,58071.0,58070.0,0.30498277]
[1617935218486,0.81769819,58071.0,58070.0,3.22378277]
[1617935218689,0.81769819,58071.0,58070.0,2.9802903]
[1617935219286,0.81769819,58071.0,58070.0,0.0614903]
[1617935219486,0.81769819,58071.0,58070.0,0.36647858]
[1617935219687,0.81769819,58071.0,58070.0,3.07917858]
[1617935219888,3.42658227,58071.0,58070.0,3.01768828]
[1617935220090,3.42658227,58071.0,58070.0,3.38356275]
[1617935220289,3.42658227,58071.0,58070.0,3.44505128]
[1617935220490,3.4880708,58071.0,58070.0,3.44505128]
[1617935222192,0.4295708,58071.0,58070.0,3.44505128]
[1617935222492,0.4295708,58071.0,58070.0,0.73235128]
[1617935223234,0.36808227,58071.0,58070.0,0.67086275]
[1617935223434,0.36796883,58073.0,58070.0,1.17887739]
[1617935223819,0.36796359,58074.0,58072.0,1.11630511]
[1617935224394,0.36795599,58075.0,58073.0,1.11622597]
[1617935224698,0.36795432,58076.0,58074.0,0.10725655]
[1617935225096,0.36795432,58076.0,58075.0,1.17734076]
[1617935227896,0.36795452,58077.0,58075.0,1.17734076]
[1617935228308,0.36795452,58077.0,58076.0,1.11650294]
[1617935229201,0.36795452,58077.0,58076.0,0.66990176]
[1617935234712,0.47521107,58077.0,58076.0,0.66990176]
[1617935235108,0.53669337,58077.0,58076.0,0.66990176]
[1617935236509,0.53669337,58077.0,58076.0,4.11260176]
[1617935237111,0.53669337,58077.0,58076.0,4.17408438]
[1617935239311,0.53669337,58077.0,58076.0,0.73138438]
[1617935239710,0.53669337,58077.0,58076.0,3.46138438]
[1617935239912,0.53669337,58077.0,58076.0,3.39990176]
[1617935240112,1.53669337,58077.0,58076.0,3.39990176]
[1617935240413,1.53669337,58077.0,58076.0,3.46138571]
[1617935240812,1.98654401,58077.0,58076.0,3.46138571]
[1617935241313,0.98654401,58077.0,58076.0,3.46138571]
[1617935246716,0.98654401,58077.0,58076.0,0.73138571]
[1617935247318,4.44034401,58077.0,58076.0,0.73138571]
[1617935247519,4.44034401,58077.0,58076.0,0.66990176]
[1617935248320,4.65196263,58077.0,58076.0,0.73138735]
[1617935248620,4.65196263,58077.0,58076.0,0.66990176]
[1617935252235,4.44034401,58077.0,58076.0,0.66990176]
[1617935253629,5.44034401,58077.0,58076.0,0.66990176]
[1617935254631,4.44034401,58077.0,58076.0,0.66990176]
[1617935255533,0.98654401,58077.0,58076.0,0.66990176]
[1617935255735,0.98654401,58077.0,58076.0,3.37840176]
[1617935255934,0.92506171,58077.0,58076.0,3.37840176]
[1617935256335,0.98654691,58077.0,58076.0,3.43988696]
[1617935257635,1.98654691,58077.0,58076.0,3.43988696]
[1617935262044,1.98654691,58077.0,58076.0,3.074486]
[1617935262543,1.98654691,58077.0,58076.0,3.44082722]
[1617935262944,1.98654691,58077.0,58076.0,3.074486]
[1617935263445,1.98654691,58077.0,58076.0,3.44083843]
[1617935264348,1.98654691,58077.0,58076.0,3.074486]
[1617935266654,1.98654691,58077.0,58076.0,3.44078893]
[1617935267556,1.98654691,58077.0,58076.0,0.73228893]
[1617935267956,5.51954691,58077.0,58076.0,0.73228893]
[1617935268158,5.51954691,58077.0,58076.0,0.3045008]
[1617935268457,5.73202183,58077.0,58076.0,0.36598719]
[1617935268858,5.73202183,58077.0,58076.0,0.3045008]
[1617935272960,4.73202183,58077.0,58076.0,0.3045008]
[1617935273162,5.24386856,58077.0,58076.0,0.67096699]
[1617935273562,4.73202183,58077.0,58076.0,0.67096699]
[1617935273862,1.19902183,58077.0,58076.0,0.67096699]
[1617935274165,1.19902183,58077.0,58076.0,3.22226699]
[1617935274463,0.98654691,58077.0,58076.0,3.22226699]
[1617935274962,0.98654691,58077.0,58076.0,3.28375169]
[1617935275163,0.98654691,58077.0,58076.0,0.73245169]
[1617935275964,0.98654691,58077.0,58076.0,3.39696699]
[1617935276562,1.19943946,58077.0,58076.0,3.45845115]
[1617935278065,1.31024946,58077.0,58076.0,3.45845115]
[1617935279065,2.31024946,58077.0,58076.0,3.45845115]
[1617935290479,2.31024946,58077.0,58076.0,0.73245115]
[1617935290881,5.44254946,58077.0,58076.0,0.73245115]
[1617935291181,5.22965691,58077.0,58076.0,0.67096699]
[1617935291581,5.44335365,58077.0,58076.0,0.73245195]
[1617935291983,5.44335365,58077.0,58076.0,0.67096699]
[1617935292284,5.44335365,58077.0,58076.0,0.73245228]
[1617935292685,5.44335365,58077.0,58076.0,0.67096699]
[1617935294785,5.95545313,58077.0,58076.0,0.67096699]
[1617935294985,2.82315313,58077.0,58076.0,0.67096699]
[1617935295287,2.82315313,58077.0,58076.0,3.87996699]
[1617935295685,2.60945639,58077.0,58076.0,3.94145234]
[1617935297186,2.60945639,58077.0,58076.0,0.73245234]
[1617935297687,5.76075639,58077.0,58076.0,0.73245234]
[1617935297890,5.76075639,58077.0,58076.0,0.67096699]
[1617935298388,5.97455142,58077.0,58076.0,0.67096699]
[1617935299991,5.97455142,58077.0,58076.0,0.3045008]
[1617935300991,6.33860142,58077.0,58076.0,0.3045008]
[1617935303095,6.33860142,58077.0,58075.0,0.305403]
[1617935303593,6.33860142,58077.0,58073.0,0.30550618]
[1617935303594,1.97122202,58076.0,58073.0,0.30550618]
[1617935303993,1.33181453,58074.0,58073.0,0.30550618]
[1617935304794,1.33181453,58074.0,58072.0,0.3055486]
[1617935305096,2.33181453,58074.0,58072.0,0.3055486]
[1617935305296,1.33184056,58073.0,58070.0,0.3666405]
[1617935305699,1.33185088,58071.0,58070.0,0.3666405]
[1617935306098,1.33185088,58071.0,58070.0,0.30556585]
[1617935306702,1.33185088,58071.0,58069.0,0.30509537]
[1617935306902,0.10725655,58070.0,58069.0,0.30509537]
[1617935307299,1.10725655,58070.0,58069.0,0.30509537]
[1617935307600,1.10725655,58070.0,58068.0,0.30518013]
[1617935307601,2.49859279,58070.0,58068.0,0.30518013]
[1617935307800,1.49859279,58070.0,58068.0,0.30518013]
[1617935308000,1.10725655,58070.0,58046.0,0.1274]
[1617935308201,3.2355,58056.0,58046.0,0.1274]
[1617935308399,3.36567,58056.0,58051.0,0.10725655]
[1617935308604,3.36567,58056.0,58053.0,0.50875384]